bitfinex/quotes_BTCUSD_20250614
["timestamp","ask_amount","ask_price","bid_price","bid_amount"]
[1749892125121,1.06565054,105120.0,105110.0,0.06350578]
[1749892125351,1.06565054,105120.0,105110.0,0.0456968]
[1749892125783,1.06565054,105120.0,105110.0,0.06350546]
[1749892127547,0.5111419,105120.0,105110.0,0.06350546]
[1749892127770,1.06565054,105120.0,105110.0,0.06350546]
[1749892128067,0.32645474,105120.0,105110.0,0.23597365]
[1749892128305,0.51940521,105120.0,105110.0,0.27280805]
[1749892128553,1.08342615,105120.0,105110.0,0.27280805]
[1749892128753,1.08342615,105120.0,105110.0,0.25500088]
[1749892128967,1.08342615,105120.0,105110.0,0.27280603]
[1749892129179,1.08342615,105120.0,105110.0,0.27280609]
[1749892129388,1.08342615,105120.0,105110.0,0.27280606]
[1749892130438,1.08342615,105120.0,105110.0,0.25500088]
[1749892130644,1.08342615,105120.0,105110.0,0.27280532]
[1749892130846,1.08342615,105120.0,105110.0,0.25500088]
[1749892131261,1.07391385,105120.0,105110.0,0.27280612]
[1749892132406,1.06440146,105120.0,105110.0,0.25500088]
[1749892132619,1.06440146,105120.0,105110.0,0.27280612]
[1749892133057,1.0548888,105120.0,105110.0,0.26329258]
[1749892133214,1.0548888,105120.0,105110.0,0.27280624]
[1749892133417,1.0548888,105120.0,105110.0,0.27280703]
[1749892133818,1.0548888,105120.0,105110.0,0.27282474]
[1749892135946,1.0548888,105120.0,105110.0,0.25500106]
[1749892136229,1.0548888,105120.0,105110.0,0.27282474]
[1749892136440,1.0548888,105120.0,105110.0,0.26331108]
[1749892137292,1.04537587,105120.0,105110.0,0.26331108]
[1749892137727,1.04537587,105120.0,105110.0,0.27282474]
[1749892137938,1.04537587,105120.0,105110.0,0.25500106]
[1749892138152,1.04537587,105120.0,105110.0,0.27282474]
[1749892138370,1.04537587,105120.0,105110.0,0.25500106]
[1749892138579,1.04537587,105120.0,105110.0,0.27282474]
[1749892139433,1.04537587,105120.0,105110.0,0.25379733]
[1749892139647,1.04537587,105120.0,105110.0,0.23597365]
[1749892139859,1.04537587,105120.0,105110.0,0.26331117]
[1749892140072,1.04537587,105120.0,105110.0,0.26329639]
[1749892140744,1.04537587,105120.0,105110.0,0.24548749]
[1749892140962,1.04537587,105120.0,105110.0,0.26329639]
[1749892141202,1.04537587,105120.0,105110.0,0.0635057]
[1749892141418,1.71885361,105120.0,105110.0,0.0276968]
[1749892141634,1.62270439,105120.0,105110.0,0.02680781]
[1749892141860,2.06470615,105120.0,105110.0,0.0089968]
[1749892142082,2.30700369,105120.0,105110.0,0.02681258]
[1749892142301,2.30700369,105120.0,105110.0,0.0089968]
[1749892143814,2.30700369,105120.0,105110.0,0.0079968]
[1749892144023,2.30800369,105120.0,105110.0,0.0079968]
[1749892144230,2.30900369,105120.0,105110.0,0.0079968]
[1749892145112,2.28960369,105120.0,105110.0,0.0079968]
[1749892152461,2.30960369,105120.0,105110.0,0.0079968]
[1749892153828,2.52960369,105120.0,105110.0,0.0079968]
[1749892155062,2.52960369,105120.0,105110.0,0.0456968]
[1749892157459,2.52960369,105120.0,105110.0,0.0079968]
[1749892157619,2.62575291,105120.0,105110.0,0.0079968]
[1749892160737,1.51673563,105120.0,105110.0,0.0079968]
[1749892160944,1.42058641,105120.0,105110.0,0.0079968]
[1749892161155,2.52960369,105120.0,105110.0,0.0079968]
[1749892161801,2.52956369,105120.0,105110.0,0.0079968]
[1749892162010,2.30956369,105120.0,105110.0,0.0454968]
[1749892162212,2.40571291,105120.0,105110.0,0.0079968]
[1749892163673,2.40571291,105120.0,105110.0,0.0454968]
[1749892164708,2.30956369,105120.0,105110.0,0.0454968]
[1749892164921,2.11524369,105120.0,105110.0,0.0454968]
[1749892165144,1.51219751,105120.0,105110.0,0.0454968]
[1749892165358,1.70643751,105120.0,105110.0,0.0454968]
[1749892165780,1.92643751,105120.0,105110.0,0.0454968]
[1749892167536,1.70643751,105120.0,105110.0,0.0454968]
[1749892168178,2.28948369,105120.0,105110.0,0.0454968]
[1749892169024,1.18046641,105120.0,105110.0,0.0454968]
[1749892169225,2.28948369,105120.0,105110.0,0.0454968]
[1749892170278,2.38563291,105120.0,105110.0,0.06332565]
[1749892170496,2.38563291,105120.0,105110.0,0.0454968]
[1749892170719,1.27661563,105120.0,105110.0,0.06332565]
[1749892170957,2.38563291,105120.0,105110.0,0.06332565]
[1749892171387,2.28948369,105120.0,105110.0,0.0454968]
[1749892171812,2.28948369,105120.0,105110.0,0.06332565]
[1749892172238,2.28948369,105120.0,105110.0,0.0454968]
[1749892172872,2.28948369,105120.0,105110.0,0.06332565]
[1749892173316,2.28948369,105120.0,105110.0,0.0454968]
[1749892173748,2.28948369,105120.0,105110.0,0.06332565]
[1749892175310,2.28948369,105120.0,105110.0,0.0454968]
[1749892175742,2.28948369,105120.0,105110.0,0.06332366]
[1749892175950,2.28948369,105120.0,105110.0,0.06332324]
[1749892176165,1.54073505,105120.0,105110.0,0.0454968]
[1749892176353,1.54073505,105120.0,105110.0,0.05218097]
[1749892176354,1.73497505,105120.0,105110.0,0.05218097]
[1749892176824,1.73497505,105120.0,105110.0,0.07000501]
[1749892177039,1.73497505,105120.0,105110.0,0.07000502]
[1749892177251,0.98622641,105120.0,105110.0,0.07000504]
[1749892177468,1.73497505,105120.0,105110.0,0.05218086]
[1749892177688,1.73497505,105120.0,105110.0,0.07000503]
[1749892177898,1.73497505,105120.0,105110.0,0.06332097]
[1749892178136,1.73497505,105120.0,105110.0,0.05218086]
[1749892178346,1.73497505,105120.0,105110.0,0.07000503]
[1749892178579,1.73497505,105120.0,105110.0,0.05218086]
[1749892179009,1.73497505,105120.0,105110.0,0.0454968]
[1749892179429,1.73497505,105120.0,105110.0,0.05218086]
[1749892179617,1.73497505,105120.0,105110.0,0.07000502]
[1749892179855,1.73497505,105120.0,105110.0,0.05218086]
[1749892180067,1.73497505,105120.0,105110.0,0.07000502]
[1749892180288,1.73497505,105120.0,105110.0,0.07000501]
[1749892180501,1.73497505,105120.0,105110.0,0.070005]
[1749892180967,1.73497505,105120.0,105110.0,0.05218085]
[1749892181188,1.73497505,105120.0,105110.0,0.0454968]
[1749892181414,1.73497505,105120.0,105110.0,0.05218085]
[1749892181626,1.73497505,105120.0,105110.0,0.0454968]
[1749892181832,1.70643751,105120.0,105110.0,0.0454968]
[1749892182107,1.70643751,105120.0,105110.0,0.070005]
[1749892182527,1.70643751,105120.0,105110.0,0.07001116]
[1749892182946,1.70643751,105120.0,105110.0,0.05217672]
[1749892183160,1.70643751,105120.0,105110.0,0.06998984]
[1749892183577,1.70643751,105120.0,105110.0,0.05217672]
[1749892183788,1.70643751,105120.0,105110.0,0.06330987]
[1749892183993,1.70643751,105120.0,105110.0,0.06330985]
[1749892184199,1.70643751,105120.0,105110.0,0.06998974]
[1749892185557,2.38563291,105120.0,105110.0,0.06998975]
[1749892185768,2.38563291,105120.0,105110.0,0.06330986]
[1749892186198,2.38563291,105120.0,105110.0,0.06331095]
[1749892186437,2.38563291,105120.0,105110.0,0.0454968]
[1749892186653,2.38563291,105120.0,105110.0,0.06331095]
[1749892187084,2.38563291,105120.0,105110.0,0.0454968]
[1749892187289,2.38563291,105120.0,105110.0,0.06331095]
[1749892187917,2.38563291,105120.0,105110.0,0.0454968]
[1749892188322,2.38563291,105120.0,105110.0,0.06331095]
[1749892188553,2.38563291,105120.0,105110.0,0.0454968]
[1749892188830,1.27661563,105120.0,105110.0,0.06331085]
[1749892189028,2.38563291,105120.0,105110.0,0.06331085]
[1749892189245,2.38563291,105120.0,105110.0,0.06331082]
[1749892189474,2.03179325,105120.0,105110.0,0.06331082]
[1749892189743,2.05167207,105120.0,105110.0,0.0633108]
[1749892189954,2.05167207,105120.0,105110.0,0.06331081]
[1749892190187,2.05167207,105120.0,105110.0,0.0633108]
[1749892191232,2.02885219,105120.0,105110.0,0.0633108]
[1749892191440,2.05167927,105120.0,105110.0,0.06331082]
[1749892191643,2.05167927,105120.0,105110.0,0.06331093]
[1749892191857,2.05167927,105120.0,105110.0,0.06331095]
[1749892192065,2.05167927,105120.0,105110.0,0.0454968]
[1749892192292,2.05167927,105120.0,105110.0,0.06331113]
[1749892192501,2.05167927,105120.0,105110.0,0.06331206]
[1749892192502,2.14782849,105120.0,105110.0,0.06331206]
[1749892192713,2.14782849,105120.0,105110.0,0.0454968]
[1749892193124,2.14782849,105120.0,105110.0,0.06331209]
[1749892193338,2.14782849,105120.0,105110.0,0.0454968]
[1749892193574,2.14782849,105120.0,105110.0,0.06331209]
[1749892193792,2.14782849,105120.0,105110.0,0.0454968]
[1749892194439,2.14782849,105120.0,105110.0,0.06331211]
[1749892194853,2.14782849,105120.0,105110.0,0.06331212]
[1749892195739,2.21536234,105120.0,105110.0,0.0079968]
[1749892196195,2.19546234,105120.0,105110.0,0.0079968]
[1749892198428,2.22404334,105120.0,105110.0,0.0079968]
[1749892199396,2.26209339,105120.0,105110.0,0.0079968]
[1749892201111,2.34209339,105120.0,105110.0,0.0079968]
[1749892201567,7.40345954,105120.0,105110.0,0.0079968]
[1749892202008,7.46052562,105120.0,105110.0,0.0079968]
[1749892202224,7.47540689,105120.0,105110.0,0.0079968]
[1749892202667,7.41834081,105120.0,105110.0,0.0079968]
[1749892202884,7.47540689,105120.0,105110.0,0.0079968]
[1749892206540,7.41834081,105120.0,105110.0,0.0079968]
[1749892206748,7.47540689,105120.0,105110.0,0.0079968]
[1749892207260,7.74952689,105120.0,105110.0,0.0079968]
[1749892209464,7.69246081,105120.0,105110.0,0.0079968]
[1749892210277,7.74952689,105120.0,105110.0,0.0079968]
[1749892211573,7.69246081,105120.0,105110.0,0.0079968]
[1749892211777,7.74952689,105120.0,105110.0,0.0079968]
[1749892212188,7.72962689,105120.0,105110.0,0.0079968]
[1749892213095,7.71052689,105120.0,105110.0,0.0079968]
[1749892222643,7.67247684,105120.0,105110.0,0.0079968]
[1749892227954,7.67247684,105120.0,105110.0,0.0277968]
[1749892228425,7.67247684,105120.0,105110.0,0.0469968]
[1749892236716,7.48011603,105120.0,105110.0,0.0469968]
[1749892241071,7.48587603,105120.0,105110.0,0.0469968]
[1749892241275,7.88011603,105120.0,105110.0,0.0469968]
[1749892241481,7.90866444,105120.0,105110.0,0.0469968]
[1749892241896,7.88011603,105120.0,105110.0,0.0469968]
[1749892242450,7.97626525,105120.0,105110.0,0.0469968]
[1749892243878,7.62674233,105120.0,105110.0,0.0469968]
[1749892246548,7.63626525,105120.0,105110.0,0.0469968]
[1749892247589,7.97626525,105120.0,105110.0,0.0469968]
[1749892253935,8.03333133,105120.0,105110.0,0.0469968]
[1749892255509,7.99526126,105120.0,105110.0,0.0469968]
[1749892255718,8.03332504,105120.0,105110.0,0.0469968]
[1749892256558,7.99526126,105120.0,105110.0,0.0469968]
[1749892263030,7.89911204,105120.0,105110.0,0.0469968]
[1749892269906,7.89912737,105120.0,105110.0,0.0469968]
[1749892272127,7.89912737,105120.0,105110.0,0.0475608]
[1749892294144,7.89900737,105120.0,105110.0,0.0475608]
[1749892298051,7.62488737,105120.0,105110.0,0.0475608]
[1749892298251,7.72103659,105120.0,105110.0,0.0475608]
[1749892301536,7.62488737,105120.0,105110.0,0.0475608]
[1749892307465,1.1295383,105120.0,105110.0,0.0475608]
[1749892307682,0.74614211,105120.0,105110.0,0.23783765]
[1749892307890,1.22645529,105120.0,105110.0,0.0720785]
[1749892308091,1.22645529,105120.0,105110.0,0.05424738]
[1749892308092,1.41209529,105120.0,105110.0,0.05424738]
[1749892308230,1.44163253,105120.0,105110.0,0.05424728]
[1749892308434,1.44163253,105120.0,105110.0,0.0720778]
[1749892308700,1.44163253,105120.0,105110.0,0.07207794]
[1749892308861,1.44163253,105120.0,105110.0,0.07207791]
[1749892309106,1.44163253,105120.0,105110.0,0.07207781]
[1749892309423,1.99614117,105120.0,105110.0,0.07207762]
[1749892309854,1.96759001,105120.0,105110.0,0.06539125]
[1749892310069,1.96759001,105120.0,105110.0,0.07207767]
[1749892310286,1.96759001,105120.0,105110.0,0.05424722]
[1749892310713,1.96759001,105120.0,105110.0,0.07207767]
[1749892311208,1.96759001,105120.0,105110.0,0.0475608]
[1749892311417,1.96759001,105120.0,105110.0,0.05424722]
[1749892311619,1.96759001,105120.0,105110.0,0.07208101]
[1749892311822,1.96759001,105120.0,105110.0,0.05424847]
[1749892312028,1.96759001,105120.0,105110.0,0.07208247]
[1749892312246,1.96759001,105120.0,105110.0,0.06539494]
[1749892312479,1.96759001,105120.0,105110.0,0.0542486]
[1749892312694,1.96759001,105120.0,105110.0,0.07208274]
[1749892312884,1.96759001,105120.0,105110.0,0.06539494]
[1749892313275,1.96759001,105120.0,105110.0,0.0475608]
[1749892313482,1.96759001,105120.0,105110.0,0.07208274]
[1749892314114,1.96759001,105120.0,105110.0,0.0542486]
[1749892314318,1.96759001,105120.0,105110.0,0.07208274]
[1749892315356,1.96759001,105120.0,105110.0,0.0542486]
[1749892315570,1.96759001,105120.0,105110.0,0.0475608]
[1749892318448,0.85857273,105120.0,105110.0,0.0475608]
[1749892318650,1.96759001,105120.0,105110.0,0.0475608]
[1749892320221,0.85857273,105120.0,105110.0,0.0475608]
[1749892320433,1.96759001,105120.0,105110.0,0.0475608]
[1749892320639,1.77351001,105120.0,105110.0,0.0475608]
[1749892320849,1.96755001,105120.0,105110.0,0.0475608]
[1749892324687,1.77351001,105120.0,105110.0,0.0475608]
[1749892324901,1.21900137,105120.0,105110.0,0.24735131]
[1749892325107,1.41869595,105120.0,105110.0,0.28132226]
[1749892325320,0.71938015,105120.0,105110.0,0.29083555]
[1749892325517,1.25486428,105120.0,105110.0,0.2813215]
[1749892325651,1.25486428,105120.0,105110.0,0.27971694]
[1749892325652,1.21518428,105120.0,105110.0,0.27971694]
[1749892325855,1.2056718,105120.0,105110.0,0.27020364]
[1749892326059,1.2056718,105120.0,105110.0,0.28131923]
[1749892326299,1.19615905,105120.0,105110.0,0.27847477]
[1749892326442,1.19615905,105120.0,105110.0,0.07867502]
[1749892326645,1.18664621,105120.0,105110.0,0.07867502]
[1749892326843,1.86009212,105120.0,105110.0,0.05423]
[1749892327252,1.7639429,105120.0,105110.0,0.05423]
[1749892328593,1.20943426,105120.0,105110.0,0.05423]
[1749892328802,1.36375426,105120.0,105110.0,0.05423]
[1749892329041,1.36375426,105120.0,105110.0,0.07200752]
[1749892329228,1.36375426,105120.0,105110.0,0.05423]
[1749892329668,1.36375426,105120.0,105110.0,0.07200767]
[1749892330155,1.40343426,105120.0,105110.0,0.07200767]
[1749892330595,0.70411837,105120.0,105110.0,0.27304755]
[1749892330798,1.39015896,105120.0,105110.0,0.28131184]
[1749892331005,0.83565032,105120.0,105110.0,0.27020027]
[1749892331210,1.39015896,105120.0,105110.0,0.28797633]
[1749892331415,0.99638746,105120.0,105110.0,0.38696541]
[1749892331619,1.2643764,105120.0,105110.0,0.30032887]
[1749892331823,1.2643764,105120.0,105110.0,0.28922357]
[1749892332023,1.2643764,105120.0,105110.0,0.30699024]
[1749892332230,1.2246964,105120.0,105110.0,0.30032776]
[1749892332638,1.2246964,105120.0,105110.0,0.30699024]
[1749892334053,1.2246964,105120.0,105110.0,0.31650342]
[1749892334258,1.02492472,105120.0,105110.0,0.31650213]
[1749892334461,1.02492472,105120.0,105110.0,0.31650072]
[1749892334665,0.47041599,105120.0,105110.0,0.30983883]
[1749892334938,0.47992874,105120.0,105110.0,0.39489595]
[1749892335064,0.47992874,105120.0,105110.0,0.41269049]
[1749892336022,0.47992874,105120.0,105110.0,0.41269048]
[1749892336221,0.47992874,105120.0,105110.0,0.388223]
[1749892336443,0.47992874,105120.0,105110.0,0.41269048]
[1749892336572,0.422,105120.0,105110.0,1.06344087]
[1749892336779,0.45053717,105120.0,105110.0,1.05676618]
[1749892336978,0.43151212,105120.0,105110.0,1.0389734]
[1749892337186,0.44102451,105120.0,105110.0,1.0389734]
[1749892337412,0.44002451,105120.0,105110.0,1.05676597]
[1749892337778,0.44002451,105120.0,105110.0,1.04564559]
[1749892337957,0.43902451,105120.0,105110.0,1.0389734]
[1749892338117,0.43902433,105120.0,105110.0,1.05776592]
[1749892338316,0.43902433,105120.0,105110.0,1.06443811]
[1749892338529,0.08,105120.0,105110.0,1.21208556]
[1749892338712,0.08,105120.0,105110.0,1.21875702]
[1749892338945,0.08,105120.0,105110.0,1.2120441]
[1749892339192,0.08,105120.0,105110.0,1.21871558]
[1749892339398,0.08,105120.0,105110.0,1.21871575]
[1749892339601,0.08,105120.0,105110.0,1.21871572]
[1749892339816,0.08,105120.0,105110.0,1.20092494]
[1749892339975,0.08,105120.0,105110.0,1.21204419]
[1749892340173,0.08951221,105120.0,105110.0,1.21871572]
[1749892340401,0.0990246,105120.0,105110.0,1.06443571]
[1749892340603,0.08951221,105120.0,105110.0,1.21871571]
[1749892341599,0.08951221,105120.0,105110.0,1.20092494]
[1749892341801,0.08951221,105120.0,105110.0,1.21871568]
[1749892342049,0.08,105120.0,105110.0,1.21871568]
[1749892342182,0.08,105120.0,105110.0,1.21871567]
[1749892342630,0.08,105120.0,105110.0,1.1942534]
[1749892342847,0.08,105120.0,105110.0,1.21871549]
[1749892343250,0.08,105120.0,105110.0,1.21871547]
[1749892343553,0.08,105120.0,105110.0,1.21871536]
[1749892343759,0.08,105120.0,105110.0,1.21871524]
[1749892343953,0.08,105120.0,105110.0,1.21546568]
[1749892344106,0.08,105120.0,105110.0,1.22658462]
[1749892344315,0.08,105120.0,105110.0,1.233256]
[1749892344820,0.08,105120.0,105110.0,1.23325601]
[1749892345012,0.08,105120.0,105110.0,1.21546564]
[1749892345275,0.08,105120.0,105110.0,1.21546532]
[1749892345453,0.08,105120.0,105110.0,1.20879425]
[1749892345691,0.08951212,105120.0,105110.0,1.22661563]
[1749892345915,0.08951212,105120.0,105110.0,1.23229863]
[1749892346122,0.08,105120.0,105110.0,1.23229863]
[1749892346300,0.08,105120.0,105110.0,1.2452986]
[1749892346451,0.08,105120.0,105110.0,1.2386156]
[1749892346649,0.08,105120.0,105110.0,1.24521165]
[1749892347054,0.08,105120.0,105110.0,1.22079425]
[1749892347279,0.08,105120.0,105110.0,1.24521165]
[1749892347490,0.08,105120.0,105110.0,1.22745354]
[1749892347695,0.08,105120.0,105110.0,1.24521165]
[1749892348560,0.08951221,105120.0,105110.0,1.24521165]
[1749892348946,0.08951221,105120.0,105110.0,1.22745354]
[1749892349317,0.08,105120.0,105110.0,1.24521164]
[1749892349520,0.08951212,105120.0,105110.0,1.22745354]
[1749892349721,0.08951212,105120.0,105110.0,1.24521165]
[1749892349920,0.09902433,105120.0,105110.0,1.22745354]
[1749892350333,0.01902433,105120.0,105110.0,1.23855236]
[1749892350538,0.01902433,105120.0,105110.0,1.22745354]
[1749892350741,0.01902433,105120.0,105110.0,1.24521165]
[1749892351739,0.01902433,105120.0,105110.0,1.23855236]
[1749892351933,0.01902433,105120.0,105110.0,1.24521165]
[1749892352780,0.01902433,105120.0,105110.0,1.22079425]
[1749892353180,0.01902433,105120.0,105110.0,1.22745354]
[1749892353362,0.01902433,105120.0,105110.0,1.24521165]
[1749892353986,0.01902442,105120.0,105110.0,1.24521165]
[1749892354329,0.02853672,105120.0,105110.0,1.24521119]
[1749892354510,0.02853672,105120.0,105110.0,1.24521116]
[1749892354776,0.02853672,105120.0,105110.0,1.24521107]
[1749892355654,0.02853672,105120.0,105110.0,1.23855194]
[1749892355808,0.02853672,105120.0,105110.0,1.24521107]
[1749892356435,0.02853672,105120.0,105110.0,1.22079425]
[1749892356647,0.02853672,105120.0,105110.0,1.24521138]
[1749892356849,0.02853672,105120.0,105110.0,1.22745349]
[1749892357089,0.02853672,105120.0,105110.0,1.23855222]
[1749892357297,0.01902433,105120.0,105110.0,1.22745349]
[1749892357500,0.01902433,105120.0,105110.0,1.24521146]
[1749892357699,0.01902433,105120.0,105110.0,1.24521147]
[1749892357916,0.01902433,105120.0,105110.0,1.24521144]
[1749892358123,0.01902433,105120.0,105110.0,1.22745348]
[1749892358349,0.01902433,105120.0,105110.0,1.24521143]
[1749892358931,0.01902433,105120.0,105110.0,1.22079425]
[1749892359171,0.01902433,105120.0,105110.0,1.2385522]
[1749892359493,0.01902433,105120.0,105110.0,1.22079425]
[1749892359701,0.01902433,105120.0,105110.0,1.24521143]
[1749892359906,0.01902433,105120.0,105110.0,1.22079425]
[1749892360058,0.01902433,105120.0,105110.0,1.24521144]
[1749892360261,0.01902433,105120.0,105110.0,1.2452115]
[1749892360472,0.01902433,105120.0,105110.0,1.23855225]
[1749892360693,0.01902433,105120.0,105110.0,1.2274535]
[1749892360898,0.01902433,105120.0,105110.0,1.23855225]
[1749892361192,0.01902433,105120.0,105110.0,1.2452115]
[1749892361441,0.01902433,105120.0,105110.0,1.23855225]
[1749892361615,0.01902433,105120.0,105110.0,1.22079425]
[1749892361905,0.01902433,105120.0,105110.0,1.23861554]
[1749892362134,0.01902433,105120.0,105110.0,1.24529852]
[1749892362621,0.09902433,105120.0,105110.0,1.24529852]
[1749892362771,0.09902433,105120.0,105110.0,1.22079425]
[1749892363076,0.09902433,105120.0,105110.0,1.24529852]
[1749892363278,0.09902433,105120.0,105110.0,1.24529411]
[1749892363467,0.01902433,105120.0,105110.0,1.24529411]
[1749892363929,0.01902433,105120.0,105110.0,1.24529412]
[1749892364360,0.01902433,105120.0,105110.0,1.23861234]
[1749892364588,0.01902433,105120.0,105110.0,1.2452942]
[1749892364729,0.01902433,105120.0,105110.0,1.24529422]
[1749892364941,0.01902433,105120.0,105110.0,1.22747613]
[1749892365251,0.01902433,105120.0,105110.0,1.24529448]
[1749892365460,0.01902433,105120.0,105110.0,1.2386126]
[1749892365659,0.01902433,105120.0,105110.0,1.24529448]
[1749892366060,0.01902433,105120.0,105110.0,1.2386126]
[1749892366249,0.01902433,105120.0,105110.0,1.24529448]
[1749892366740,0.01902433,105120.0,105110.0,1.2386126]
[1749892366954,0.01902433,105120.0,105110.0,1.22747615]
[1749892367156,0.01902433,105120.0,105110.0,1.24529455]
[1749892367351,0.01902433,105120.0,105110.0,1.23861261]
[1749892367552,0.01902433,105120.0,105110.0,1.22747613]
[1749892367829,0.01902433,105120.0,105110.0,1.24529448]
[1749892368054,0.01902433,105120.0,105110.0,1.22079425]
[1749892368200,0.01902433,105120.0,105110.0,1.2386126]
[1749892368426,0.01902433,105120.0,105110.0,1.24529448]
[1749892368648,0.01902433,105120.0,105110.0,1.23861257]
[1749892368856,0.01902433,105120.0,105110.0,1.23861256]
[1749892369069,0.01902433,105120.0,105110.0,1.22747613]
[1749892369278,0.01902433,105120.0,105110.0,1.24529454]
[1749892369487,0.01902433,105120.0,105110.0,1.24529458]
[1749892369700,0.01902433,105120.0,105110.0,1.23861269]
[1749892370045,0.01902433,105120.0,105110.0,1.22747626]
[1749892370266,0.01902433,105120.0,105110.0,1.24529502]
[1749892370466,0.09902433,105120.0,105110.0,1.24529502]
[1749892370610,0.09902433,105120.0,105110.0,1.24529513]
[1749892370818,0.09902433,105120.0,105110.0,1.2452957]
[1749892371036,0.01902433,105120.0,105110.0,1.24529573]
[1749892371242,0.01902433,105120.0,105110.0,1.24529581]
[1749892371455,0.00951212,105120.0,105110.0,1.22079425]
[1749892371719,0.00951212,105120.0,105110.0,1.24529581]
[1749892371924,0.00951212,105120.0,105110.0,1.23861357]
[1749892372337,0.00951212,105120.0,105110.0,1.24529581]
[1749892372750,0.00951212,105120.0,105110.0,1.22747649]
[1749892372960,0.00951212,105120.0,105110.0,1.24529581]
[1749892373156,0.00951212,105120.0,105110.0,1.22747649]
[1749892373364,0.00951212,105120.0,105110.0,1.24529581]
[1749892373564,0.00951212,105120.0,105110.0,1.22747649]
[1749892373747,0.00951212,105120.0,105110.0,1.22079425]
[1749892373949,0.00951212,105120.0,105110.0,1.24529612]
[1749892374551,0.00951212,105120.0,105110.0,1.24529611]
[1749892374963,0.00951212,105120.0,105110.0,1.24529694]
[1749892375672,0.00951212,105120.0,105110.0,1.23861439]
[1749892375852,0.00951212,105120.0,105110.0,1.22747657]
[1749892376050,0.00951212,105120.0,105110.0,1.2452961]
[1749892376251,0.00951212,105120.0,105110.0,1.23861378]
[1749892376781,0.00951212,105120.0,105110.0,1.23861641]
[1749892376991,0.00951212,105120.0,105110.0,1.22079425]
[1749892377212,0.00951212,105120.0,105110.0,1.22747756]
[1749892377430,0.00951212,105120.0,105110.0,1.23861641]
[1749892377643,0.01902361,105130.0,105120.0,0.02853771]
[1749892377845,0.56828759,105130.0,105120.0,1.06074686]
[1749892378045,0.36853491,105130.0,105120.0,1.06074686]
[1749892378246,0.35902306,105130.0,105120.0,1.12007989]
[1749892378449,0.36853491,105130.0,105120.0,1.07856829]
[1749892378655,0.36853491,105130.0,105120.0,1.08525132]
[1749892378867,0.36853491,105130.0,105120.0,1.08625128]
[1749892379080,0.36853491,105130.0,105120.0,0.53174279]
[1749892379334,0.35902306,105130.0,105120.0,0.53174279]
[1749892379544,0.36853491,105130.0,105120.0,0.53174279]
[1749892379747,0.36853491,105130.0,105120.0,0.52505973]
[1749892379953,0.36853491,105130.0,105120.0,0.50723822]
[1749892380157,0.36853491,105130.0,105120.0,0.53174261]
[1749892380382,0.36853491,105130.0,105120.0,0.50723822]
[1749892380570,0.36853491,105130.0,105120.0,0.53174264]
[1749892380733,0.36853491,105130.0,105120.0,0.51392124]
[1749892380937,0.35902306,105130.0,105120.0,0.51392124]
[1749892381117,0.36853491,105130.0,105120.0,0.52505962]
[1749892381465,0.36853491,105130.0,105120.0,1.08625127]
[1749892382003,0.35902306,105130.0,105120.0,1.08625143]
[1749892382209,0.35902306,105130.0,105120.0,1.07956828]
[1749892382419,0.35902306,105130.0,105120.0,1.08625126]
[1749892382619,0.35902306,105130.0,105120.0,1.18240048]
[1749892382826,0.35902306,105130.0,105120.0,1.18240046]
[1749892384067,0.35902306,105130.0,105120.0,1.18240048]
[1749892384632,0.35902306,105130.0,105120.0,1.18240047]
[1749892384848,0.35902306,105130.0,105120.0,1.18240043]
[1749892385050,0.35902306,105130.0,105120.0,1.16457908]
[1749892385244,0.35902306,105130.0,105120.0,1.17571753]
[1749892385557,0.35902306,105130.0,105120.0,1.18239306]
[1749892385772,0.34951139,105130.0,105120.0,1.16457707]
[1749892385989,0.20922519,105150.0,105140.0,0.1997335]
[1749892386196,0.01902071,105140.0,105130.0,0.96598356]
[1749892386399,0.02853129,105140.0,105130.0,1.11486373]
[1749892386626,0.00951031,105140.0,105130.0,1.10373254]
[1749892386851,1.37254981,105160.0,105150.0,0.21873431]
[1749892387053,1.73536647,105160.0,105150.0,0.37840043]
[1749892387264,1.73536647,105160.0,105150.0,0.38123209]
[1749892387470,1.73536647,105160.0,105150.0,0.37010244]
[1749892387677,1.76740347,105160.0,105150.0,0.43583208]
[1749892387904,1.76740347,105160.0,105150.0,0.37293467]
[1749892388115,1.76745112,105160.0,105150.0,0.3974175]
[1749892388332,1.76745112,105160.0,105150.0,0.39741763]
[1749892388621,1.76745112,105160.0,105150.0,0.40692749]
[1749892388823,1.76945112,105160.0,105150.0,0.39741764]
[1749892389028,1.21494248,105160.0,105150.0,0.39741764]
[1749892389267,1.74663446,105160.0,105150.0,0.37961184]
[1749892389471,1.74663446,105160.0,105150.0,0.23492163]
[1749892389585,0.9623389,105160.0,105150.0,0.40025011]
[1749892389797,1.52635667,105160.0,105150.0,0.53227256]
[1749892390007,0.97284803,105160.0,105150.0,0.53227256]
[1749892390220,1.72705227,105160.0,105150.0,0.52276288]
[1749892390429,1.17254363,105160.0,105150.0,0.53227211]
[1749892390630,1.18205294,105160.0,105150.0,0.53227211]
[1749892391008,1.73656158,105160.0,105150.0,0.53227211]
[1749892391191,1.73656158,105160.0,105150.0,0.53227205]
[1749892391408,1.73656158,105160.0,105150.0,0.52559552]
[1749892391580,1.73656158,105160.0,105150.0,0.53227205]
[1749892391789,1.04776589,105160.0,105150.0,0.53227155]
[1749892391986,0.44220181,105160.0,105150.0,0.6284205]
[1749892392161,0.27130137,105160.0,105150.0,0.53227128]
[1749892392364,0.27130137,105160.0,105150.0,0.53227122]
[1749892392565,0.30472914,105160.0,105150.0,0.53227122]
[1749892392766,0.30472914,105160.0,105150.0,0.53227123]
[1749892392991,0.30472914,105160.0,105150.0,0.53227122]
[1749892393198,0.30472914,105160.0,105150.0,0.62841995]
[1749892393371,0.85923778,105160.0,105150.0,0.62841995]
[1749892393585,0.01255633,105160.0,105150.0,0.62841995]
[1749892393757,0.01255633,105160.0,105150.0,0.62174429]
[1749892393963,0.02206519,105160.0,105150.0,0.62174429]
[1749892394167,0.03157423,105160.0,105150.0,0.62174429]
[1749892394434,0.0220651,105160.0,105150.0,0.62174429]
[1749892394637,0.03157396,105160.0,105150.0,0.62174429]
[1749892394933,0.03157396,105160.0,105150.0,0.6284195]
[1749892395376,0.03157396,105160.0,105150.0,0.53227028]
[1749892395571,0.04108309,105160.0,105150.0,0.53227028]
[1749892395785,0.59559173,105160.0,105150.0,0.52559507]
[1749892396359,0.6281015,105160.0,105150.0,0.53227029]
[1749892397354,0.82779719,105160.0,105150.0,0.53227029]
[1749892397561,0.63761072,105160.0,105150.0,0.53227029]
[1749892397754,0.63761072,105160.0,105150.0,0.52559507]
[1749892398158,0.27328846,105160.0,105150.0,0.5322703]
[1749892398339,0.8277971,105160.0,105150.0,0.52559507]
[1749892399134,0.8277971,105160.0,105150.0,0.53227033]
[1749892399530,0.8277971,105160.0,105150.0,0.53227031]
[1749892399733,0.8277971,105160.0,105150.0,0.52559507]
[1749892399933,0.8277971,105160.0,105150.0,0.53227033]
[1749892400421,0.8277971,105160.0,105150.0,0.52559507]
[1749892400846,0.81828842,105160.0,105150.0,0.36856074]